Cogmind - Beta 15 @@@ ROGUE MODE // 2025.08.10 @ 19:17:08 Player: Skysub Result: Destroyed by A6-A91(R) with Subdweller Laser Performance ------------- Evolutions (0) 0 Regions Visited (3) 600 Robots Destroyed (21) 105 Value Destroyed (546) 546 Prototype IDs (11) 220 Alien Tech Used (0) 0 Bonus (0) 0 TOTAL SCORE: 1471 Bonus ------- None Cogmind --------- Core Integrity 0/250 Matter 271/300 Energy 80/100 System Corruption 0% Temperature Cool (6) Movement Rolling (115) Ox1 Location -10/Subcaves Parts ------- > --- POWER (1) -------- (None) > --- PROPULSION (2) --- Light Treads Compact Wheel > --- UTILITY (2) ------ Scrap Shield > --- WEAPON (2) ------- Assault Rifle Light Cannon > --- INVENTORY (5) ---- Cargo Legs Heavy Armor Plating Peak State ------------ > --- POWER ------------ Ion Engine > --- PROPULSION ------- Light Treads Compact Wheel > --- UTILITY ---------- Large Storage Unit Improved Light Armor Plating > --- WEAPON ----------- Assault Rifle Assault Rifle > --- INVENTORY -------- Compact Wheel Huge Storage Unit High-capacity Matter Pod Structural Scanner Machine Analyzer Improved Signal Interpreter Heavy Armor Plating System Shield Assault Rifle Assault Rifle Light Assault Rifle Light Cannon Mining Laser Mining Claw [Rating: 11] Favorites ----------- Power Ion Engine Engine Ion Engine Propulsion Light Treads Treads Light Treads Wheel Compact Wheel Utility Large Storage Unit Device Seismic Detector Storage Large Storage Unit Protection Improved Light Armor Plating Weapon Assault Rifle Energy Gun Small Laser Ballistic Gun Assault Rifle Ballistic Cannon Light Cannon Slashing Weapon Mining Claw Build | -11 -10 -10 -10 ------- Run | Yrd Mat Min Sub Slots Evolved . | . . . . Power . | . . . . Propulsion . | . . . . Utility . | . . . . Weapon . | . . . . Parts Attached 23 | 7 8 3 5 Power 2 | 1 1 . . Engine 2 | 1 1 . . Core . | . . . . Reactor . | . . . . Propulsion 6 | 2 2 1 1 Treads 4 | 2 . 1 1 Leg . | . . . . Wheel 2 | . 2 . . Hover . | . . . . Flight . | . . . . Utility 8 | 2 3 2 1 Device 1 | 1 . . . Storage 4 | 1 2 1 . Processor . | . . . . Hackware . | . . . . Protection 3 | . 1 1 1 Artifact . | . . . . Weapon 7 | 2 2 . 3 Energy Gun 1 | 1 . . . Energy Cannon . | . . . . Ballistic Gun 4 | 1 2 . 1 Ballistic Cannon 1 | . . . 1 Launcher . | . . . . Special Weapon . | . . . . Impact Weapon . | . . . . Slashing Weapon 1 | . . . 1 Piercing Weapon . | . . . . Special Melee Weapon . | . . . . Unidentified Prototypes . | . . . . Parts Lost 7 | . 5 . 2 Power 2 | . 1 . 1 Propulsion 2 | . 2 . . Utility 2 | . 1 . 1 Weapon 1 | . 1 . . Highest Loss Streak 2 | . 2 . 1 To Critical Strikes . | . . . . Average Backups 10 | 3 7 11 12 Power . | . . . . Propulsion 1 | 1 1 . 1 Utility 4 | . 2 4 7 Weapon 3 | . 3 5 4 Tool/Special . | . . . . Unused Backups 15 | . . 3 12 Power . | . . . . Propulsion 1 | . . . 1 Utility 10 | . . 3 7 Weapon 4 | . . . 4 Tool/Special . | . . . . Average Slot Usage (%) 92 | . 99 100 85 Engine 7 | . 13 14 1 Treads 16 | . 22 11 14 Wheel 10 | . 5 16 14 Device 3 | . 8 . . Storage 14 | . 14 14 14 Protection 9 | . 5 14 12 Energy Gun 3 | . 8 . . Ballistic Gun 22 | . 19 28 23 Slashing Weapon 1 | . . . 2 Peak Build Rating 11 | 7 8 11 11 Average Rating 8 | 4 7 8 10 On Entrance 6 | . 7 8 11 Naked Turns . | . . . . Heaviest Build 92 | 11 92 92 32 Greatest Support 40 | 40 40 32 20 Greatest Overweight (x) 2 | 1 2 2 1 Average Overweight (x) . | . . . . Largest Inventory Capacity 25 | 8 25 25 15 Average Capacity 12 | 6 9 15 14 Most Carried 15 | 6 9 15 15 Average Carried 11 | 3 7 11 14 Final Capacity 25 | 8 25 15 5 Final Carried 15 | 5 9 15 4 Class Distribution -------------------- 100% | Mutant Dominant Class ---------------- Mutant | -10/Materials Mutant | -10/Mines Mutant | -10/Subcaves Resources | -11 -10 -10 -10 ----------- Run | Yrd Mat Min Sub Matter Collected 796 | 259 281 103 153 Remotely . | . . . . Salvage Created 705 | 40 474 . 191 Parts 50 | 9 29 . 12 Haulers Intercepted 1 | . 1 . . Recyclers Shooed 1 | 1 . . . Parts Field Recycled . | . . . . Retrieved Matter . | . . . . Parts Self-Destructed 3 | . . . 3 Prevented . | . . . . Kills | -11 -10 -10 -10 ------- Run | Yrd Mat Min Sub Combat Hostiles Destroyed 16 | . 11 . 5 Guns 14 | . 11 . 3 Cannons 2 | . . . 2 Classes Destroyed 8 | 1 5 . 2 Worker 1 | . 1 . . Tunneler 2 | 2 . . . Hauler 1 | . 1 . . Watcher 1 | . 1 . . Swarmer 4 | . 3 . 1 Grunt 8 | . 8 . . Sentry 1 | . . . 1 Subdweller 3 | . . . 3 Best Kill Streak 3 | 2 3 . 2 Combat Bots Only 3 | . 3 . 2 Max Kills in Single Turn 1 | 1 1 . 1 Gunslinging . | . . . . Exploded . | . . . . Melee . | . . . . Uniques/NPCs Destroyed . | . . . . Combat | -11 -10 -10 -10 -------- Run | Yrd Mat Min Sub Hostile Shots Fired 131 | . 86 . 45 Missed 37 | . 26 . 11 Hits 94 | . 60 . 34 Projectile 94 | . 60 . 34 Critical Strikes 5 | . 2 . 3 Damage Taken 1429 | . 777 . 652 Core 261 | . 124 . 137 Absorbed by Shields . | . . . . Core Remaining (%) 100 | 100 . . . Volleys Fired 98 | 10 66 . 22 Largest 2 | 2 2 . 2 Hottest 60 | 60 60 . 50 Shots Fired 192 | 19 129 . 44 Gun 182 | 19 129 . 34 Cannon 10 | . . . 10 Launcher . | . . . . Special . | . . . . Kinetic 146 | 10 92 . 44 Thermal 46 | 9 37 . . Explosive . | . . . . Electromagnetic . | . . . . Robot Hit Streak 14 | 6 12 . 14 Robot Miss Streak 3 | 2 3 . 3 Penetration Max . | . . . . Secondary Targets 2 | . 2 . . Max Gunslinging Chain 1 | . 1 . . Shots Hit Robots 127 | 12 83 . 32 Core Hits 47 | 3 33 . 11 Critical Kills . | . . . . Critical Parts Destroyed . | . . . . Critical Strikes 2 | . . . 2 Destroy 1 | . . . 1 Blast 1 | . . . 1 Melee Attacks 1 | . . . 1 Impact . | . . . . Slashing 1 | . . . 1 Piercing . | . . . . Sneak Attacks . | . . . . Combat Hostiles . | . . . . Follow-up Attacks . | . . . . Damage Inflicted 1473 | 112 914 . 447 Guns 1334 | 108 914 . 312 Cannons 135 | . . . 135 Explosions . | . . . . Melee . | . . . . Ramming 4 | 4 . . . Kinetic 1114 | 44 623 . 447 Thermal 355 | 64 291 . . Explosive . | . . . . Electromagnetic . | . . . . Impact . | . . . . Slashing . | . . . . Piercing . | . . . . Highest Corruption . | . . . . Average Corruption . | . . . . Corruption Purged . | . . . . Corruption Blocked . | . . . . Overload Shots . | . . . . Overflow Damage . | . . . . Projectiles . | . . . . Explosions . | . . . . Melee . | . . . . Knockbacks 3 | 1 . . 2 Impact 1 | 1 . . . Kinetic 2 | . . . 2 Secondary . | . . . . Self-Inflicted Damage . | . . . . Shots . | . . . . Rammed 1 | 1 . . . Targets Rammed 1 | 1 . . . Kicked . | . . . . Crushed . | . . . . Highest Temperature 144 | 40 144 . . Average Temperature 39 | 25 42 . . Received Heat Transfer 516 | . 384 . 132 Siege Activations . | . . . . Martial Activations . | . . . . Shielding Activations . | . . . . Robots Disrupted . | . . . . Combat Hostiles . | . . . . Robots Corrupted . | . . . . Combat Hostiles . | . . . . Parts Fried . | . . . . Impact Corruptions . | . . . . Robots Melted . | . . . . Combat Hostiles . | . . . . Parts Melted . | . . . . Heat Transferred 825 | 150 675 . . Parts Sabotaged . | . . . . Parts Stolen . | . . . . Parts Stripped . | . . . . Power Chain Reactions . | . . . . Alert | -11 -10 -10 -10 ------- Run | Yrd Mat Min Sub Maximum Alert Level . | . . . . Low Security (%) 100 | 100 100 100 . Level 1 . | . . . . Level 2 . | . . . . Level 3 . | . . . . Level 4 . | . . . . Level 5 . | . . . . High Security . | . . . . Max Security . | . . . . Peak Influence 126 | 10 126 . . Initial . | . . . . Average 35 | . 47 . . Influence Increases 449 | 10 399 . 40 Destroy 0b10 Robot/C 260 | . 220 . 40 Destroy 0b10 Robot/NC 25 | 10 15 . . Destroy Leader 54 | . 54 . . Successful Hack 20 | . 20 . . Select Force Hacks 60 | . 60 . . Disable Machine 15 | . 15 . . Lose Combat Pursuer 15 | . 15 . . Influence Decreases 449 | 10 399 . 40 Time Decay 389 | 10 349 . 30 Lost Part 60 | . 50 . 10 Squads Dispatched 3 | . 2 1 . Investigation 3 | . 2 1 . Extermination . | . . . . Reinforcement . | . . . . Assault . | . . . . Garrison . | . . . . Intercept . | . . . . Searches Triggered . | . . . . Construction Impeded . | . . . . Haulers Reinforced . | . . . . Active Scanning Responses . | . . . . Cargo Convoy Interrupts . | . . . . Stealth | -11 -10 -10 -10 --------- Run | Yrd Mat Min Sub Distress Signals 1 | . 1 . . Communications Jammed . | . . . . Distress Signals . | . . . . Times Spotted 27 | . 19 . 8 Peak Tracking Total 4 | . 4 . 3 Tactical Retreats 2 | . 1 . 1 Traps | -11 -10 -10 -10 ------- Run | Yrd Mat Min Sub Traps Triggered 2 | . 2 . . Indirectly . | . . . . Trap Hack Attempts . | . . . . Triggered . | . . . . Disarmed . | . . . . Reprogrammed . | . . . . Reused . | . . . . Traps Extracted . | . . . . Installed . | . . . . Triggered . | . . . . Machines | -11 -10 -10 -10 ---------- Run | Yrd Mat Min Sub Machines Disabled 2 | . 1 . 1 Max in Single Turn 1 | . 1 . 1 Machines Repaired . | . . . . Machines Dismantled . | . . . . Machines Sabotaged . | . . . . Overloaded Fab Kills . | . . . . Hacking | -11 -10 -10 -10 --------- Run | Yrd Mat Min Sub Machines Accessed 10 | . 8 1 1 Terminals 6 | . 6 . . Fabricators . | . . . . Repair Stations . | . . . . Recycling Units 2 | . 2 . . Scanalyzers . | . . . . Garrison Access . | . . . . Total Hacks 22 | . 20 1 1 Successful 15 | . 13 1 1 Failed 7 | . 7 . . Catastrophic . | . . . . Database Lockouts . | . . . . Manual 17 | . 17 . . Terminals 15 | . 15 . . Fabricators . | . . . . Repair Stations . | . . . . Recycling Units 5 | . 5 . . Scanalyzers . | . . . . Garrison Access . | . . . . Terminal Hacks 2 | . . 1 1 Open Door 1 | . . 1 . Proto ID Catalog 1 | . . . 1 Fabricator Hacks . | . . . . Repair Station Hacks . | . . . . Recycling Unit Hacks 3 | . 3 . . Report Inventory 2 | . 2 . . Retrieve Components 1 | . 1 . . Scanalyzer . | . . . . Garrison Access Hacks . | . . . . Unauthorized Hacks 10 | . 10 . . Terminals 8 | . 8 . . Botnet 2 | . 2 . . Skim 6 | . 6 . . Fabricators . | . . . . Repair Stations . | . . . . Recycling Units 2 | . 2 . . Tunnel 2 | . 2 . . Scanalyzers . | . . . . Garrison Access . | . . . . Data Cores Recovered . | . . . . Used . | . . . . Hacking Detections 5 | . 5 . . Full Trace Events . | . . . . Feedback Events . | . . . . Feedback Blocked . | . . . . Robot Schematics Acquired . | . . . . Robots Built . | . . . . Authchips . | . . . . Time . | . . . . Total Robot Build Rating . | . . . . Part Schematics Acquired . | . . . . Parts Built . | . . . . Authchips . | . . . . Time . | . . . . Total Part Build Rating . | . . . . Parts Repaired . | . . . . Time . | . . . . Parts Recycled . | . . . . Recycled Matter . | . . . . Retrieved Matter . | . . . . Retrieved Components 6 | . 6 . . Parts Scanalyzed . | . . . . Part Schematics Acquired . | . . . . Parts Damaged . | . . . . Bothacking | -11 -10 -10 -10 ------------ Run | Yrd Mat Min Sub Used RIF Installer . | . . . . Robots Hacked . | . . . . Non-combat . | . . . . Combat . | . . . . Robot Hacks Applied . | . . . . Relay Couplers Released . | . . . . Fabnet Peak Effective % . | . . . . Robots Rewired . | . . . . Allies Hacked . | . . . . Hacks Repelled . | . . . . Allies | -11 -10 -10 -10 -------- Run | Yrd Mat Min Sub Total Allies . | . . . . Largest Group . | . . . . Highest-Rated Group . | . . . . Highest-Rated Ally . | . . . . Total Orders . | . . . . Ally Attacks . | . . . . Total Damage . | . . . . Kills . | . . . . Allies Corrupted . | . . . . Allies Melted . | . . . . Intel | -11 -10 -10 -10 ------- Run | Yrd Mat Min Sub Active Infowar (turns) 587 | 7 580 . . Seismic 587 | 7 580 . . Robot Analysis Total . | . . . . Derelict Logs Recovered 2 | . . 1 1 Drone Launches . | . . . . Drone Recoveries . | . . . . Exploration | -11 -10 -10 -10 ------------- Run | Yrd Mat Min Sub Turns Passed 2642 | 98 1005 237 1302 Spaces Moved 1323 | 44 531 185 563 Core 18 | 18 . . . Treads 817 | 26 359 7 425 Legs . | . . . . Wheels 488 | . 172 178 138 Hover . | . . . . Flight . | . . . . Fastest Speed 50 | 50 100 100 100 Average Speed 168 | 124 146 118 209 Slowest Speed 240 | 160 160 240 240 Overloaded Moves . | . . . . Propulsion Burnouts . | . . . . Robots Hopped . | . . . . Potential Cave-ins . | . . . . Cave-ins Triggered . | . . . . Exploration Rate (%) 48 | 4 89 57 45 Regions Visited 3 Branch Regions 2 Pre-discovered Areas 5 | . 4 . 1 Known Exits Taken 1 | . . 1 . Unknown Exits Taken 2 | 1 1 . . Scrap Searched 2 | . . 2 . Spaces Dug . | . . . . Terrain Destroyed . | . . . . Melee . | . . . . Projectile . | . . . . AOE . | . . . . Terrain Rammed . | . . . . Walls Destroyed . | . . . . Machines Disabled . | . . . . Actions | -11 -10 -10 -10 --------- Run | Yrd Mat Min Sub Total 1551 | 67 635 204 645 Wait 61 | . 23 1 37 Move 1321 | 44 530 184 563 Hop . | . . . . Pick Up 29 | 6 7 10 6 Fast Attach 7 | 6 . . 1 Attach 6 | 1 5 . . Detach . | . . . . Swap 10 | . 3 3 4 Drop 18 | . 1 6 11 Fire 98 | 10 66 . 22 Melee 1 | . . . 1 Ram . | . . . . Kick . | . . . . Crush . | . . . . Escape Stasis . | . . . . Rewire . | . . . . Trap . | . . . . Miscellaneous . | . . . . Route ------- -11/Scrapyard -10/Materials (discovered 6 exits: *Mat x3 / *Min x2 / *Sub) -10/Mines (discovered 2 exits: *Mat / *Sub) -10/Subcaves (discovered 3 exits: Mat x2 / [*Scr]) History --------- Turn | Location | Event 15 | -11/Scrapyard | Discovered new exit (range 16) 99 | -11/Scrapyard | Entered Materials 303 | -10/Materials | Build established: Mutant 327 | -10/Materials | Discovered new exit (range 7) 344 | -10/Materials | Discovered new exit (range 14) 372 | -10/Materials | Identified exit to Materials 372 | -10/Materials | Identified exit to Subcaves 441 | -10/Materials | Learned location of Storage (-9) 461 | -10/Materials | Learned location of 2 exits from Subcaves 471 | -10/Materials | Learned 2 Mines zone layouts 524 | -10/Materials | Learned Storage trap positions 1104 | -10/Materials | Entered Mines 1162 | -10/Mines | Met a Derelict bent on vengeance 1211 | -10/Mines | Learned location of 1 exit from Materials 1248 | -10/Mines | Discovered exit to Materials (range 8) 1281 | -10/Mines | Met a Derelict shopkeep closing up shop 1333 | -10/Mines | Discovered exit to Subcaves (range 10) 1341 | -10/Mines | Entered Subcaves 1342 | -10/Subcaves | Approached by a straggling Scientist 1342 | -10/Subcaves | Identified exit to Materials 1373 | -10/Subcaves | Scientist uncovered a shortcut to Scraptown 1551 | -10/Subcaves | Core integrity fell below 50% 1630 | -10/Subcaves | A swath of the cavern ceiling suddenly collapsed 1797 | -10/Subcaves | Disturbed a concealed Subdweller 2194 | -10/Subcaves | Visited 4L-MR0's lab 2218 | -10/Subcaves | Found Powered Cannon 2439 | -10/Subcaves | Learned location of Zion (-6) 2471 | -10/Subcaves | A Subdweller sparked back to life 2485 | -10/Subcaves | Core integrity fell below 20% 2512 | -10/Subcaves | Found Cargo Legs 2643 | -10/Subcaves | Destroyed by A6-A91(R) with Subdweller Laser Last Messages --------------- 02479_ EZ-HVB(R) destroyed. 02485_ HD-POW(R) knocked back. 02488_ Subatomizers dissect the Cargo Legs. 02488_ Imp. Light Armor Plating destroyed. 02488_ HD-POW(R) destroyed. 02491_ PS-6X1(R) Sub. Beam Cannon blasted off. 02491_ PS-6X1(R) knocked back. 02494_ Acquired 34 matter. 02498_ Subatomizers dissect the Cargo Legs. 02499_ PS-6X1(R) affixes Scrap Shield Fragment to Scrap Shield. 02511_ Dropped Assault Rifle. 02512_ Subatomizers dissect the Cargo Legs. 02512_ Dropped Assault Rifle. 02512_ Acquired Cargo Legs. 02513_ Acquired 2 matter. 02516_ Acquired 28 matter. 02518_ Acquired 2 matter. 02526_ Subatomizers dissect the Sub. Beam Cannon. 02640_ Dropped Lrg. Storage Unit. 02643_ Acquired Scrap Shield. Map ----- +----------------------------------------------------+ | ????????????????## #????????????? ??? # | | ?????????????#### #?###?????????# #??# # | | ?????????????# ## ##????????# #?? | | ?????????????# #???????## ?## | | ?######??????# ##??????## ## # | | ?# #""#?????## ## ###?????### # | | ?#!#""#?????# ### ##????? | | ?#! ""#?#####" ##?## ##?????? | | ?# X"#?# #"" ##???## ##??????? | | ?# ""#?# #?????# ##???????????# | | ?#" "#?# ##????# #####????????# | | ?#" "#?# #" #????## #######??# | | ?###+##### ## # ##?????## ## #### | | ?##" ##" # ####???????#### ## | | #" " " ## #?????????????##### ## | | #"" """" " ## #?????##??????????## ### | | #"" " " ### #????# #???????????#####?# | | ##" " """#### ##### #?????????????????# ## | | ?#########??### #??????#####??????# #? | | ?????????????# ##??##### ######## #? | | ?????????????# #???# ## ##? | | ?????????????# #???# #?? | | ?????????????# #??## #? | | ?????????????## #### ##### ##? | | ??????????????## ## ##??? #?? | | ???????????????# @ ####### ##????# #? | | ???????????????## ][!!##?????#####?????# # | | ?????????????#### /!!###???????????????### # | | ?????????????# =!### ###???????????????## | | ?????????????## ## ##????????????????? | | ??????????????# ### ###??????????????? | | ??????????????## ## #??# ?????????? | | ???????????????# #? ### ????????? | | ???????????????# #? ????????? | | ???????????????## ## ????????? | | ????????????????# ## #?????????? | | ???????????????## ##### #??????????? | | ???????????????# R###???# #??????????? | | ???????????????# ##???## #???????????? | | ???????????????### ##### #?????????????? | | ????????????????## ##????????????? | | ?????????????#### #????????????? | | ?????????????# ### ######????????????? | | ?????????????# #######?## #?????????????????? | | ?????????????# #???????# #?????????????????? | | ?????????????## ##??????# ##?????????????????? | | ??????????????## ##?????# #?###?????????????? | | ???????????????# ##????## ### ##????????????? | | ??????????????## #?????# ## #?????#??????# | | ??????????????# #?????# #% #####"???????# | +----------------------------------------------------+ Best States ------------- Heat Dissipation 25 Energy Generation 10 Energy Capacity 250 Matter Stores 300 Matter Capacity 300 Sight Range 16 Terrain Scan Density 10 Armor Coverage 150 Evasion (%) 40 Recoil Reduction 2 Item Schematics ----------------- None Robot Schematics ------------------ None Fabricated ------------ Nothing Repaired ---------- Nothing Alien Tech Used ----------------- None Achievements -------------- None Challenges ------------ None Game ------ Seed DamperDeliveryThermoblaster Manual? 0 Play Time 00:12:50 Cumulative 249.2 hours Start 2025.08.10 @ 19:05:41 End 2025.08.10 @ 19:17:08 Sessions 1 Manual Loads 0 Difficulty Rogue Special Mode None Game No. 264 Rogue 264 Adventurer 0 Explorer 0 Win Type - Total 11 Types 5/0/3/1/0/0/0/1/0/1 Lore% 75 Gallery% 71 Achievement% 66 Wizard Run 0 Options --------- Layout 1 ASCII 0 Keyboard 1 Movement Numpad Keybinds 0 Fullscreen 1 Font 32/SmallcapsGlow Map View 77x35 Zoom Use 0% Tactical HUD 1 Map Filters NONE Filters NONE Steam 1 RUN: e406a2e0-da34-455a-a89e-0368e25459a1